Cogmind - Beta 10.2 @@@ ROGUE MODE // 2021.03.05 @ 18:09:52 Player: Zailor Result: Destroyed by G-67 Veteran with Plasma Rifle Performance ------------- Evolutions (7) 3500 Regions Visited (18) 3600 Robots Destroyed (214) 1070 Value Destroyed (15445) 15445 Prototype IDs (7) 140 Alien Tech Used (0) 0 Bonus (7946) 7946 TOTAL SCORE: 31701 Bonus ------- High Alert Combat Kills 1299 Follower Combat Kills 3716 Entered Garrisons 1000 Used RIF Installer 2500 Friendly Fire -569 Cogmind --------- Core Integrity 0/1300 Matter 207/300 Energy 940/940 System Corruption 36% Temperature Cool (12) Movement Walking (210) Ox3 Location -3/Research Parts ------- > --- POWER (1) -------- Graviton Reactor > --- PROPULSION (3) --- Flexi-carbon Leg > --- UTILITY (15) ----- Medium Storage Unit Medium Storage Unit High-capacity Storage Unit Improved Energy Well Advanced Targeting Computer Advanced Melee Analysis Suite Advanced Target Analyzer Core Analyzer Relay Coupler [Swarmer] (36) Relay Coupler [Grunt] (2) Relay Coupler [Brawler] (30) Relay Coupler [Sentry] (21) > --- WEAPON (2) ------- Force Lance > --- INVENTORY (20) --- Light Antimatter Reactor Light Antimatter Reactor Centrium Wheel Centrium Wheel Matter Compressor (250) Antimissile System Relay Coupler [NC] (43) Relay Coupler [Sentry] (45) Relay Coupler [Specialist] (34) Plasma Rifle High-powered Shotgun High-powered Shotgun Coil Gun Heavy Machine Gun Advanced Remote Datajack Advanced Remote Datajack Lance Peak State ------------ > --- POWER ------------ Light Antimatter Reactor > --- PROPULSION ------- Improved Heavy Siege Treads Myomer Leg > --- UTILITY ---------- Advanced Heat Sink Coolant Network Medium Storage Unit Medium Storage Unit Medium Storage Unit High-capacity Storage Unit Advanced Targeting Computer Advanced Target Analyzer Core Analyzer Relay Coupler [Swarmer] Relay Coupler [Grunt] Relay Coupler [Brawler] Relay Coupler [Sentry] > --- WEAPON ----------- Coil Gun Advanced Remote Datajack > --- INVENTORY -------- Graviton Reactor Centrium Wheel Centrium Wheel Improved Energy Well Matter Compressor Antimissile System Relay Coupler [NC] Relay Coupler [Swarmer] Relay Coupler [Sentry] Relay Coupler [Sentry] Relay Coupler [Specialist] Plasma Rifle High-powered Shotgun High-powered Shotgun Advanced Remote Datajack Advanced Remote Datajack Lance Force Lance [Rating: 107] Favorites ----------- Power Light Fission Core Engine Improved Deuterium Engine Power Core Light Fission Core Reactor Light Antimatter Reactor Propulsion Flexi-carbon Leg Treads Improved Heavy Treads Leg Flexi-carbon Leg Wheel Centrium Wheel Utility High-capacity Storage Unit Device Advanced Heat Sink Storage High-capacity Storage Unit Processor Core Analyzer Hackware Relay Coupler [Sentry] Protection Improved Medium Armor Plating Weapon Gauss Rifle Energy Gun EM Pulse Gun Energy Cannon Neutron Cannon Ballistic Gun Gauss Rifle Ballistic Cannon Magnetic Acceleration Cannon Launcher Improved Proton Missile Launcher Special Weapon Improved Remote Datajack Slashing Weapon Phasing Sabre Piercing Weapon Force Lance Special Melee Weapon Improved Datajack Build | -11 -10 -9 -8 -7 -7 -6 -6 -6 -5 -5 -5 -5 -4 -4 -4 -3 -3 -3 ------- Run | Scr Mat Mat Mat Fac Gar Fac Gar Fac Fac Gar Fac Ext Fac Gar Fac Res Gar Res Slots Evolved 14 | . . 2 2 2 . 2 . . 2 . . . 2 . . 2 . . Power . | . . . . . . . . . . . . . . . . . . . Propulsion 1 | . . . 1 . . . . . . . . . . . . . . . Utility 13 | . . 2 1 2 . 2 . . 2 . . . 2 . . 2 . . Weapon . | . . . . . . . . . . . . . . . . . . . Parts Attached 462 | 7 2 13 13 4 35 20 39 6 13 30 22 34 24 30 57 36 29 48 Power 41 | 1 . 2 . . 6 2 3 . 1 . 2 4 1 4 6 3 2 4 Engine 11 | 1 . 2 . . 2 1 . . . . 1 3 1 . . . . . Core 12 | . . . . . 4 1 3 . 1 . . 1 . 2 . . . . Reactor 18 | . . . . . . . . . . . 1 . . 2 6 3 2 4 Propulsion 104 | 2 . 7 2 1 12 4 6 2 2 5 6 8 5 8 14 8 3 9 Treads 11 | . . . . . 2 . . . . . 1 1 . 1 2 . 3 1 Leg 82 | . . 7 2 1 10 1 6 2 2 5 4 7 5 7 12 5 . 6 Wheel 11 | 2 . . . . . 3 . . . . 1 . . . . 3 . 2 Hover . | . . . . . . . . . . . . . . . . . . . Flight . | . . . . . . . . . . . . . . . . . . . Utility 136 | 2 2 4 6 3 7 9 8 1 4 12 6 7 9 11 10 15 10 10 Device 38 | . . 2 . . 4 4 1 . 2 2 2 3 1 6 1 3 2 5 Storage 18 | 2 2 1 2 . 1 . . . . 1 1 2 . . . 5 . 1 Processor 15 | . . . . 1 . 2 2 . . . . 1 1 . 4 2 . 2 Hackware 31 | . . . . . . 1 4 . 1 7 . . 4 3 2 2 6 1 Protection 34 | . . 1 4 2 2 2 1 1 1 2 3 1 3 2 3 3 2 1 Artifact . | . . . . . . . . . . . . . . . . . . . Weapon 181 | 2 . . 5 . 10 5 22 3 6 13 8 15 9 7 27 10 14 25 Energy Gun 26 | 1 . . 2 . 1 1 6 1 . 1 . . 1 . 1 3 1 7 Energy Cannon 14 | . . . . . . . . . 1 . 2 4 3 1 1 1 1 . Ballistic Gun 76 | 1 . . 2 . 7 2 7 1 3 6 4 5 3 3 14 3 6 9 Ballistic Cannon 2 | . . . . . . 2 . . . . . . . . . . . . Launcher 5 | . . . . . 1 . 1 . . . . 2 . 1 . . . . Special Weapon 37 | . . . . . . . . . 2 5 1 3 1 1 10 1 6 7 Impact Weapon . | . . . . . . . . . . . . . . . . . . . Slashing Weapon 5 | . . . 1 . 1 . . . . . . . 1 1 1 . . . Piercing Weapon 9 | . . . . . . . 2 . . 1 1 1 . . . 2 . 2 Special Melee Weapon 7 | . . . . . . . 6 1 . . . . . . . . . . Unidentified Prototypes 7 | . . . . . . . . . . . 1 2 . . . 1 . 3 Parts Lost 164 | . . 2 5 . 21 11 7 . 1 2 12 6 14 10 21 15 8 29 Power 18 | . . . . . 4 2 1 . . . 2 2 . 1 2 1 . 3 Propulsion 34 | . . 2 1 . 5 4 . . . . 2 1 2 3 5 2 . 7 Utility 60 | . . . 1 . 5 2 1 . 1 2 3 2 9 3 7 9 4 11 Weapon 52 | . . . 3 . 7 3 5 . . . 5 1 3 3 7 3 4 8 Highest Loss Streak 8 | . . 1 3 . 6 7 2 . 1 1 5 3 7 6 8 8 2 8 Average Slot Usage (%) 92 | . 100 88 93 81 89 87 98 95 90 96 93 96 88 96 93 89 89 84 Engine 2 | . 14 11 9 7 2 2 . . . . 4 2 5 . . . . . Core 2 | . . . . . 4 2 5 6 5 5 . 2 . 3 1 . . . Reactor 1 | . . . . . . . . . . . . . . 1 3 4 4 3 Treads 1 | . . . . . 4 . . . . . 3 3 . . . . 7 4 Leg 12 | . . 18 25 16 16 8 14 20 17 17 10 12 14 13 13 8 . 4 Wheel 1 | . 28 3 . . . 7 4 . . . . . . . . 5 1 . Device 8 | . . 9 9 7 10 16 12 6 9 10 6 7 9 12 7 8 2 3 Storage 16 | . 28 22 18 15 18 18 13 13 11 12 16 18 21 16 15 14 19 18 Processor 6 | . . . . 3 7 10 16 8 5 5 5 1 2 5 6 11 10 13 Hackware 18 | . . . . . . . 13 20 16 25 29 29 21 27 29 23 27 23 Protection 4 | . . 2 13 15 7 3 2 6 9 3 3 3 3 3 3 2 4 1 Energy Gun 2 | . 14 11 8 7 . 1 6 6 4 1 . . 1 . . 1 2 2 Energy Cannon 1 | . . . . . . . . . . 3 2 . 1 5 3 . 1 . Ballistic Gun 5 | . 14 11 8 7 13 8 4 5 4 3 2 4 4 2 3 2 3 2 Naked Turns . | . . . . . . . . . . . . . . . . . . . Heaviest Build 129 | 15 31 63 85 89 98 94 89 116 129 129 109 117 124 125 92 100 109 99 Greatest Support 103 | 26 26 26 38 45 46 40 55 50 53 53 50 60 65 75 70 86 103 103 Greatest Overweight (x) 8 | 3 1 5 3 3 7 7 4 2 2 2 8 4 4 2 3 2 2 3 Average Overweight (x) 1 | . . 1 1 2 2 2 1 1 2 1 2 2 1 1 1 . . . Largest Inventory Capacity 26 | 8 14 22 20 20 20 20 20 20 20 26 26 26 26 26 18 24 24 24 Average Capacity 21 | 6 8 17 18 20 20 20 20 20 20 21 25 26 26 19 18 17 24 23 Most Carried 26 | 3 9 18 19 20 20 20 20 20 20 24 26 26 26 26 18 18 24 24 Average Carried 19 | 1 5 13 17 19 19 19 19 19 19 20 21 25 24 18 16 14 22 20 Final Capacity 26 | 8 14 18 20 20 20 20 20 20 20 26 26 26 26 18 18 24 24 20 Final Carried 25 | 3 7 18 18 20 20 20 20 20 20 24 25 25 25 18 15 17 24 17 Class Distribution -------------------- 40% | Bothacker-Mutant 23% | Botlord-Mutant 12% | Scavenger-Mutant 12% | Commander-Mutant 7% | Hauler-Mutant Dominant Class ---------------- Mutant | -10/Materials Scavenger-Mutant | -9/Materials Scavenger-Mutant | -8/Materials Hauler-Mutant | -7/Factory Scavenger-Mutant | -7/Garrison Scavenger-Mutant | -6/Factory Bothacker-Mutant | -6/Garrison Bothacker-Mutant | -6/Factory Bothacker-Mutant | -5/Factory Bothacker-Mutant | -5/Garrison Bothacker-Mutant | -5/Factory Commander-Mutant | -5/Extension Commander-Mutant | -4/Factory Botlord-Mutant | -4/Garrison Botlord-Mutant | -4/Factory Bothacker-Mutant | -3/Research Botlord-Mutant | -3/Garrison Botlord-Mutant | -3/Research Resources | -11 -10 -9 -8 -7 -7 -6 -6 -6 -5 -5 -5 -5 -4 -4 -4 -3 -3 -3 ----------- Run | Scr Mat Mat Mat Fac Gar Fac Gar Fac Fac Gar Fac Ext Fac Gar Fac Res Gar Res Matter Collected 10922 | 263 45 428 172 . 916 503 870 171 239 1057 601 740 564 657 1183 693 898 922 Remotely . | . . . . . . . . . . . . . . . . . . . Salvage Created 10938 | 81 36 685 229 59 962 342 722 120 172 483 558 241 1016 893 1353 1017 949 1020 Parts 504 | 2 1 41 12 1 48 24 41 3 11 26 21 10 31 34 63 52 34 49 Haulers Intercepted . | . . . . . . . . . . . . . . . . . . . Recyclers Shooed 11 | . . . . . . . . . 2 . 2 1 2 . 1 1 . 2 Parts Field Recycled . | . . . . . . . . . . . . . . . . . . . Retrieved Matter . | . . . . . . . . . . . . . . . . . . . Parts Self-Destructed . | . . . . . . . . . . . . . . . . . . . Prevented . | . . . . . . . . . . . . . . . . . . . Kills | -11 -10 -9 -8 -7 -7 -6 -6 -6 -5 -5 -5 -5 -4 -4 -4 -3 -3 -3 ------- Run | Scr Mat Mat Mat Fac Gar Fac Gar Fac Fac Gar Fac Ext Fac Gar Fac Res Gar Res Combat Hostiles Destroyed 189 | . 1 14 4 1 23 11 15 2 3 11 8 3 13 16 19 14 14 17 Melee 11 | . . . . . . . 1 . . . . . . . 3 5 . 2 Guns 128 | . . 12 3 . 21 5 14 2 3 5 5 . 10 8 9 6 12 13 Cannons 31 | . . . . . . 5 . . . 6 3 . 2 7 5 1 2 . AOE 14 | . 1 2 1 1 2 1 . . . . . 2 . 1 2 . . 1 Classes Destroyed 17 | 1 1 2 1 . 3 2 2 . . . 1 1 1 . 2 . . . Worker 5 | . . . . . . . . . . . . 2 . . . . . 3 Builder 6 | . . . . . . 2 . . . . . 1 . . 2 . . 1 Tunneler 2 | . . . . . . . . . . . 1 . . . 1 . . . Recycler 3 | 1 . . . . . . . . . . . . 2 . . . . . Mechanic 1 | . . . . . . . . . . . . . . . 1 . . . Operator 1 | . . . . . . . . . . . . . . . 1 . . . Watcher 4 | . . . . . . . 1 . . . 1 . . 1 . 1 . . Swarmer 36 | . . . . . 8 4 7 . . 5 . . . 6 . . 3 3 Grunt 81 | . 1 10 1 . 8 2 1 2 1 4 2 3 4 8 14 8 7 5 Brawler 2 | . . . . . . . . . . . . . 1 . . . 1 . Duelist 7 | . . 1 . . 2 . 1 . . . . . . 1 1 . 1 . Sentry 16 | . . 3 2 . 2 . 1 . . . 2 . 1 . 1 3 . 1 Demolisher 1 | . . . . . 1 . . . . . . . . . . . . . Specialist 7 | . . . . . 1 . 2 . . 2 . . . 1 . . 1 . Hunter 14 | . . . 1 1 1 2 2 . 2 . 1 . 2 . . . 1 1 Programmer 25 | . . . . . . 3 . . . . 3 . 5 . 4 3 1 6 Behemoth 3 | . . . . . . . 1 . . . . . . 1 . . . 1 Best Kill Streak 5 | 1 1 4 1 1 5 4 4 1 2 4 3 3 4 4 3 5 3 4 Combat Bots Only 5 | . 1 4 1 1 5 4 4 1 2 4 3 2 3 4 3 5 3 3 Max Kills in Single Turn 3 | 1 1 2 1 1 2 3 1 1 1 1 1 2 1 1 2 1 1 2 Gunslinging 1 | . . 1 . . . . . . . . . . . . . . . . Exploded 2 | . 1 1 1 1 2 1 . . . . . 2 . 1 2 . . 1 Melee 1 | . . . . . . . 1 . . . . . . . 1 1 . 1 Uniques/NPCs Destroyed . | . . . . . . . . . . . . . . . . . . . Combat | -11 -10 -9 -8 -7 -7 -6 -6 -6 -5 -5 -5 -5 -4 -4 -4 -3 -3 -3 -------- Run | Scr Mat Mat Mat Fac Gar Fac Gar Fac Fac Gar Fac Ext Fac Gar Fac Res Gar Res Damage Taken 32180 | . 100 554 519 150 3443 1830 1672 214 652 722 2547 1248 2093 2313 4080 2543 2521 4979 Core 3936 | . . 161 55 10 364 171 302 22 13 33 447 121 190 242 485 447 261 612 Absorbed by Shields 4330 | . . . . . 406 . 1209 . . 369 . 14 147 1082 . . 1103 . Reduced by Siege Mode 120 | . . . . . . . . . . . . . . 120 . . . . Core Remaining (%) 61 | 100 100 59 90 . 46 . . 41 . . . 38 . . 20 . . . Volleys Fired 992 | 3 6 36 13 3 93 36 65 10 19 92 64 47 78 80 100 61 83 103 Largest 2 | 1 2 2 2 2 2 2 2 2 2 2 2 2 2 2 2 2 2 2 Hottest 182 | 40 60 60 63 63 78 110 160 108 103 126 126 131 131 133 143 182 148 169 Shots Fired 1660 | 3 12 72 27 6 182 69 122 19 33 122 97 49 141 128 172 103 143 160 Gun 1183 | 3 12 72 27 6 181 29 112 19 31 35 66 10 113 45 105 85 103 129 Cannon 292 | . . . . . . 40 . . . 45 29 8 25 70 43 8 24 . Launcher 22 | . . . . . 1 . 10 . . . . 8 . 3 . . . . Special 163 | . . . . . . . . . 2 42 2 23 3 10 24 10 16 31 Kinetic 855 | . 6 36 14 3 162 68 44 10 15 30 50 10 70 45 105 47 72 68 Thermal 514 | . . . . . . 1 49 9 16 50 45 8 61 70 43 46 55 61 Explosive 11 | . . . . . 1 . 10 . . . . . . . . . . . Electromagnetic 117 | 3 6 36 13 3 19 . 19 . . . . 8 7 3 . . . . Robot Hit Streak 26 | 1 3 9 6 12 23 7 14 15 19 12 13 10 16 15 12 26 17 13 Robot Miss Streak 7 | 2 2 3 1 . 7 7 3 4 6 3 3 2 5 3 5 4 2 3 Penetration Max 2 | . . . . . . 1 1 . . . . 1 1 1 1 . 2 1 Secondary Targets 22 | . . 2 . . 3 . 5 . . . . . 1 . 1 . 7 3 Max Gunslinging Chain 1 | . . 1 . . 1 . 1 . . . . . 1 . 1 . 1 1 Shots Hit Robots 1228 | 1 8 49 20 6 132 45 112 18 21 86 69 37 95 88 113 91 111 126 Core Hits 497 | 1 2 27 9 3 75 42 35 6 8 22 22 13 30 33 51 36 43 39 Critical Hits 64 | . . 1 . . . 2 4 1 . 2 2 . 10 16 13 5 3 5 Critical Kills 20 | . . . . . . . 1 1 . . . . 2 7 4 3 1 1 Critical Parts Destroyed 36 | . . 1 . . . 1 1 . . 2 2 . 6 7 8 2 2 4 Melee Attacks 72 | . . . 5 . 1 . 23 2 . 1 4 1 . 1 6 18 . 10 Impact . | . . . . . . . . . . . . . . . . . . . Slashing 13 | . . . 5 . 1 . . . . . . . . 1 6 . . . Piercing 36 | . . . . . . . 2 . . 1 4 1 . . . 18 . 10 Sneak Attacks 22 | . . . . . . . 18 1 . 1 . . . 1 . . . 1 Combat Hostiles 1 | . . . . . . . 1 . . . . . . . . . . . Follow-up Attacks . | . . . . . . . . . . . . . . . . . . . Damage Inflicted 30489 | 43 290 691 344 106 2268 1327 2405 251 373 1450 1900 963 2817 2926 3739 2465 3019 3112 Guns 19182 | 43 115 604 249 65 2022 402 1756 251 373 454 1065 150 2233 803 1895 1779 2214 2709 Cannons 6984 | . . . . . . 590 . . . 896 835 176 584 1727 1254 117 805 . Explosions 2826 | . 175 87 95 41 246 335 482 . . . . 637 . 274 454 . . . Melee 1497 | . . . . . . . 167 . . 100 . . . 122 136 569 . 403 Ramming . | . . . . . . . . . . . . . . . . . . . Kinetic 13191 | . 48 299 111 25 1829 961 535 105 152 399 790 150 1240 803 1895 958 1588 1303 Thermal 12944 | . 175 87 95 41 148 366 900 146 221 951 1110 282 1395 1819 1433 938 1431 1406 Explosive 855 | . . . . . 98 . 482 . . . . . . . 275 . . . Electromagnetic 2002 | 43 67 305 138 40 193 . 321 . . . . 531 182 182 . . . . Impact . | . . . . . . . . . . . . . . . . . . . Slashing 258 | . . . . . . . . . . . . . . 122 136 . . . Piercing 1239 | . . . . . . . 167 . . 100 . . . . . 569 . 403 Highest Corruption 36 | . . . 13 . . 4 4 4 . . 17 17 20 20 29 9 12 36 Average Corruption 13 | . . . 13 . . 3 4 4 . . 15 17 12 17 23 8 11 17 Corruption Purged 3 | . . . . . . . . . . . . . . 3 . . . . Effects 851 | . . . 6 . . 15 48 14 . . 93 119 53 143 154 23 100 83 Message Errors 152 | . . . 1 . . 7 13 4 . . 17 21 12 22 19 10 15 11 Matter Fused 142 | . . . 2 . . 3 13 3 . . 21 21 8 16 26 4 15 10 Heat Flow Errors 63 | . . . . . . 2 1 1 . . 9 12 2 11 11 . 10 4 Energy Discharges 83 | . . . 1 . . 1 7 5 . . 7 14 3 10 11 2 11 11 Parts Rejected 7 | . . . . . . . . . . . 3 1 1 1 . . . 1 Data Loss (minor) 59 | . . . . . . 1 7 1 . . 5 14 4 13 5 1 6 2 Data Loss (major) 35 | . . . . . . . . . . . 1 2 1 8 8 2 9 4 Misfires 24 | . . . 1 . . . . . . . 1 2 4 5 4 1 5 1 Alerts 11 | . . . . . . . . . . . 3 2 2 2 2 . . . Misdirections 102 | . . . . . . . . . . . 11 22 5 22 24 . 9 9 Targeting Errors 151 | . . . 1 . . 1 6 . . . 12 6 9 27 40 2 17 30 Weapon Failures 22 | . . . . . . . 1 . . . 3 2 2 6 4 1 3 . Overload Shots . | . . . . . . . . . . . . . . . . . . . Overflow Damage 609 | . 24 . . . . 20 42 . . 86 49 16 7 105 173 . 31 56 Projectiles 210 | . . . . . . . . . . 21 49 3 7 35 64 . 31 . Explosions 211 | . 24 . . . . 20 42 . . . . 13 . 3 109 . . . Melee 188 | . . . . . . . . . . 65 . . . 67 . . . 56 Knockbacks 17 | . . . . . . 17 . . . . . . . . . . . . Impact . | . . . . . . . . . . . . . . . . . . . Kinetic 17 | . . . . . . 17 . . . . . . . . . . . . Secondary . | . . . . . . . . . . . . . . . . . . . Self-Inflicted Damage 314 | . . . 55 66 50 114 8 . . . . . . 21 . . . . Shots 8 | . . . 1 1 1 1 2 . . . . . . 2 . . . . Rammed 1 | . . . . . . . . . . . . . . . . . 1 . Targets Rammed 1 | . . . . . . . . . . . . . . . . . 1 . Kicked . | . . . . . . . . . . . . . . . . . . . Crushed . | . . . . . . . . . . . . . . . . . . . Highest Temperature 342 | . 54 12 . . 19 125 242 102 250 104 193 196 199 277 229 16 242 342 Average Temperature 71 | . 30 5 . . 7 18 37 43 132 28 80 59 90 80 80 8 57 116 Received Heat Transfer 4079 | . 54 273 45 . 681 57 223 33 153 191 129 196 210 244 645 384 255 306 Effects 7 | . . . . . . . . . . . . . . . 4 . . 3 Interference 6 | . . . . . . . . . . . . . . . 4 . . 2 Short Circuit 1 | . . . . . . . . . . . . . . . . . . 1 Siege Activations 2 | . . . . . . . . . . . . . . 2 . . . . Total Turns 87 | . . . . . . . . . . . . . . 87 . . . . Longest Duration 49 | . . . . . . . . . . . . . . 49 . . . . Robots Corrupted 2 | . . . . . . . . . . . . 1 1 . . . . . Combat Hostiles 2 | . . . . . . . . . . . . 1 1 . . . . . Parts Fried 10 | . . 1 . . . . 4 . . . . 3 1 1 . . . . Impact Corruptions . | . . . . . . . . . . . . . . . . . . . Robots Melted 4 | . . . . . . . . . . . . . . . . 2 1 1 Combat Hostiles 3 | . . . . . . . . . . . . . . . . 2 . 1 Parts Melted 22 | . . . . . . . 1 1 . . 5 . 4 . . 2 1 8 Heat Transferred 15152 | . 200 50 100 50 150 287 1473 325 500 1384 1369 385 1770 1300 875 1184 1345 2405 Parts Sabotaged 2 | . . . . . . . . . . . . . . . 2 . . . Parts Stolen . | . . . . . . . . . . . . . . . . . . . Parts Stripped . | . . . . . . . . . . . . . . . . . . . Power Chain Reactions 13 | . 2 2 2 1 1 . . . . . . 3 . 2 . . . . Missiles Intercepted . | . . . . . . . . . . . . . . . . . . . Alert | -11 -10 -9 -8 -7 -7 -6 -6 -6 -5 -5 -5 -5 -4 -4 -4 -3 -3 -3 ------- Run | Scr Mat Mat Mat Fac Gar Fac Gar Fac Fac Gar Fac Ext Fac Gar Fac Res Gar Res Peak Influence 990 | 5 51 226 90 125 631 345 710 542 367 868 530 383 425 990 738 404 696 638 Initial 519 | . 3 21 12 30 . 331 73 372 265 127 455 132 156 284 519 334 151 391 Average 354 | 1 31 87 30 72 396 153 469 310 250 566 346 131 192 693 537 289 472 400 Maximum Alert Level 3 | . . 1 . . 2 1 3 2 1 3 2 1 2 3 3 2 2 2 Low Security (%) 29 | 100 100 87 100 100 17 72 17 41 33 3 1 65 58 . . 2 2 . Level 1 31 | . . 12 . . 20 27 12 40 66 16 73 34 29 17 10 96 40 54 Level 2 30 | . . . . . 61 . 47 17 . 56 24 . 11 32 81 . 56 45 Level 3 8 | . . . . . . . 22 . . 23 . . . 50 7 . . . Level 4 . | . . . . . . . . . . . . . . . . . . . Level 5 . | . . . . . . . . . . . . . . . . . . . High Security . | . . . . . . . . . . . . . . . . . . . Max Security . | . . . . . . . . . . . . . . . . . . . Squads Dispatched 56 | . 1 . 1 . . 8 . 6 2 . 3 4 3 . 13 3 . 12 Investigation 4 | . . . . . . . . . . . . 1 . . 2 1 . . Extermination 18 | . . . . . . 4 . 2 . . 2 . 2 . 4 1 . 3 Reinforcement 20 | . 1 . 1 . . 1 . 2 2 . 1 3 . . 4 . . 5 Assault 3 | . . . . . . . . . . . . . . . 3 . . . Garrison 11 | . . . . . . 3 . 2 . . . . 1 . . 1 . 4 Intercept . | . . . . . . . . . . . . . . . . . . . Construction Impeded 9 | . . . . . . 1 . 1 . . 1 2 . . 2 . . 2 Haulers Reinforced 3 | . . . . . . . . 1 . . . . . . . . . 2 Stealth | -11 -10 -9 -8 -7 -7 -6 -6 -6 -5 -5 -5 -5 -4 -4 -4 -3 -3 -3 --------- Run | Scr Mat Mat Mat Fac Gar Fac Gar Fac Fac Gar Fac Ext Fac Gar Fac Res Gar Res Distress Signals 17 | . . . 1 . . 1 . . . 1 . 3 1 . 4 1 . 5 Communications Jammed . | . . . . . . . . . . . . . . . . . . . Distress Signals . | . . . . . . . . . . . . . . . . . . . Times Spotted 476 | . 2 24 8 3 43 21 27 7 9 34 15 29 28 37 70 26 33 60 Peak Tracking Total 17 | . 2 4 2 3 6 5 8 3 5 5 3 5 4 17 8 6 9 9 Tactical Retreats 41 | . 1 4 . . 7 . 2 . 3 6 2 1 1 3 5 . 4 2 Traps | -11 -10 -9 -8 -7 -7 -6 -6 -6 -5 -5 -5 -5 -4 -4 -4 -3 -3 -3 ------- Run | Scr Mat Mat Mat Fac Gar Fac Gar Fac Fac Gar Fac Ext Fac Gar Fac Res Gar Res Traps Triggered 53 | . . . . 1 16 2 6 . . 8 . 6 1 8 3 1 1 . Indirectly 1 | . . . . . . . . . . . . 1 . . . . . . Trap Hack Attempts . | . . . . . . . . . . . . . . . . . . . Triggered . | . . . . . . . . . . . . . . . . . . . Disarmed . | . . . . . . . . . . . . . . . . . . . Reprogrammed . | . . . . . . . . . . . . . . . . . . . Reused . | . . . . . . . . . . . . . . . . . . . Traps Extracted . | . . . . . . . . . . . . . . . . . . . Installed . | . . . . . . . . . . . . . . . . . . . Triggered 4 | . . . . . . . . . . . . . 4 . . . . . Machines | -11 -10 -9 -8 -7 -7 -6 -6 -6 -5 -5 -5 -5 -4 -4 -4 -3 -3 -3 ---------- Run | Scr Mat Mat Mat Fac Gar Fac Gar Fac Fac Gar Fac Ext Fac Gar Fac Res Gar Res Machines Disabled 63 | . . . 1 4 3 3 4 18 1 5 1 5 1 5 4 . 5 3 Max in Single Turn 4 | . . . 1 4 1 2 1 . 1 1 . 1 1 1 2 . 1 . Garrison Relay 21 | . . . . . 3 . 4 . . 4 . . . 5 . . 5 . Machines Sabotaged . | . . . . . . . . . . . . . . . . . . . Garrisons Compromised . | . . . . . . . . . . . . . . . . . . . Overloaded Fab Kills . | . . . . . . . . . . . . . . . . . . . Fab Network Shutdowns . | . . . . . . . . . . . . . . . . . . . Hacking | -11 -10 -9 -8 -7 -7 -6 -6 -6 -5 -5 -5 -5 -4 -4 -4 -3 -3 -3 --------- Run | Scr Mat Mat Mat Fac Gar Fac Gar Fac Fac Gar Fac Ext Fac Gar Fac Res Gar Res Machines Accessed 38 | . 3 3 3 1 . 6 . 1 2 . 4 8 2 . 1 3 . 1 Terminals 33 | . 3 3 3 . . 5 . 1 1 . 4 8 1 . 1 2 . 1 Fabricators . | . . . . . . . . . . . . . . . . . . . Repair Stations . | . . . . . . . . . . . . . . . . . . . Recycling Units . | . . . . . . . . . . . . . . . . . . . Scanalyzers . | . . . . . . . . . . . . . . . . . . . Garrison Access 5 | . . . . 1 . 1 . . 1 . . . 1 . . 1 . . Total Hacks 117 | . 9 9 16 2 . 17 . 4 3 . 12 23 6 . 5 9 . 2 Successful 50 | . 6 4 6 1 . 7 . . 2 . 5 10 3 . 1 4 . 1 Failed 67 | . 3 5 10 1 . 10 . 4 1 . 7 13 3 . 4 5 . 1 Catastrophic 13 | . 1 . 2 . . 2 . 1 . . . 4 1 . 2 . . . Database Lockouts . | . . . . . . . . . . . . . . . . . . . Manual 62 | . 7 7 9 . . 4 . . . . 8 9 5 . 4 8 . 1 Terminals 110 | . 9 9 16 . . 16 . 4 1 . 12 23 5 . 5 8 . 2 Fabricators . | . . . . . . . . . . . . . . . . . . . Repair Stations . | . . . . . . . . . . . . . . . . . . . Recycling Units . | . . . . . . . . . . . . . . . . . . . Scanalyzers . | . . . . . . . . . . . . . . . . . . . Garrison Access 7 | . . . . 2 . 1 . . 2 . . . 1 . . 1 . . Terminal Hacks 30 | . 4 3 4 . . 4 . . . . 3 8 1 . 1 1 . 1 Open Door 3 | . . . . . . . . . . . . 3 . . . . . . Terminal Index 4 | . 1 . 1 . . . . . . . 1 . 1 . . . . . Garrison Index 1 | . . . . . . . . . . . . . . . . 1 . . Unreport Threat 9 | . . 2 1 . . 1 . . . . 1 2 . . 1 . . 1 Locate Traps 6 | . 1 1 1 . . 1 . . . . 1 1 . . . . . . Recall Reinforcements 1 | . 1 . . . . . . . . . . . . . . . . . Hauler Manifests 2 | . 1 . . . . 1 . . . . . . . . . . . . Registered Components 1 | . . . . . . 1 . . . . . . . . . . . . Zone Layout 3 | . . . 1 . . . . . . . . 2 . . . . . . Fabricator Hacks . | . . . . . . . . . . . . . . . . . . . Repair Station Hacks . | . . . . . . . . . . . . . . . . . . . Recycling Unit Hacks . | . . . . . . . . . . . . . . . . . . . Scanalyzer . | . . . . . . . . . . . . . . . . . . . Garrison Access Hacks 6 | . . . . 1 . 1 . . 2 . . . 1 . . 1 . . Unlock Access 5 | . . . . 1 . 1 . . 1 . . . 1 . . 1 . . Coupler Status 1 | . . . . . . . . . 1 . . . . . . . . . Unauthorized Hacks 14 | . 2 1 2 . . 2 . . . . 2 2 1 . . 2 . . Terminals 14 | . 2 1 2 . . 2 . . . . 2 2 1 . . 2 . . Botnet 13 | . 2 1 2 . . 2 . . . . 1 2 1 . . 2 . . Operators 1 | . . . . . . . . . . . 1 . . . . . . . Fabricators . | . . . . . . . . . . . . . . . . . . . Repair Stations . | . . . . . . . . . . . . . . . . . . . Recycling Units . | . . . . . . . . . . . . . . . . . . . Scanalyzers . | . . . . . . . . . . . . . . . . . . . Garrison Access . | . . . . . . . . . . . . . . . . . . . Data Cores Recovered . | . . . . . . . . . . . . . . . . . . . Used . | . . . . . . . . . . . . . . . . . . . Hacking Detections 32 | . 3 2 3 1 . 6 . 1 1 . 4 6 1 . 1 2 . 1 Full Trace Events 2 | . . . . . . . . . . . . 1 . . 1 . . . Feedback Events . | . . . . . . . . . . . . . . . . . . . Feedback Blocked . | . . . . . . . . . . . . . . . . . . . Robot Schematics Acquired . | . . . . . . . . . . . . . . . . . . . Robots Built . | . . . . . . . . . . . . . . . . . . . Matter . | . . . . . . . . . . . . . . . . . . . Time . | . . . . . . . . . . . . . . . . . . . Total Robot Build Rating . | . . . . . . . . . . . . . . . . . . . Part Schematics Acquired . | . . . . . . . . . . . . . . . . . . . Parts Built . | . . . . . . . . . . . . . . . . . . . Matter . | . . . . . . . . . . . . . . . . . . . Time . | . . . . . . . . . . . . . . . . . . . Total Part Build Rating . | . . . . . . . . . . . . . . . . . . . Parts Repaired . | . . . . . . . . . . . . . . . . . . . Time . | . . . . . . . . . . . . . . . . . . . Parts Recycled . | . . . . . . . . . . . . . . . . . . . Recycled Matter . | . . . . . . . . . . . . . . . . . . . Retrieved Matter . | . . . . . . . . . . . . . . . . . . . Retrieved Components . | . . . . . . . . . . . . . . . . . . . Parts Scanalyzed . | . . . . . . . . . . . . . . . . . . . Part Schematics Acquired . | . . . . . . . . . . . . . . . . . . . Parts Damaged . | . . . . . . . . . . . . . . . . . . . Bothacking | -11 -10 -9 -8 -7 -7 -6 -6 -6 -5 -5 -5 -5 -4 -4 -4 -3 -3 -3 ------------ Run | Scr Mat Mat Mat Fac Gar Fac Gar Fac Fac Gar Fac Ext Fac Gar Fac Res Gar Res Used RIF Installer 5 | . . . . . 1 . 1 . . 1 . . . 1 . . 1 . Coupler Efficiency 1 | . . . . . . . . . . . . . . 1 . . . . Hotswap 1 | . . . . . . . . . . 1 . . . . . . . . Patrol Navigation 1 | . . . . . . . . . . . . . . . . . 1 . Structural Interface 1 | . . . . . . . 1 . . . . . . . . . . . Robots Hacked 87 | . . . . . . . 5 1 2 11 2 6 1 8 18 6 11 16 Non-combat 11 | . . . . . . . . . . . 2 4 . . 4 1 . . Combat 76 | . . . . . . . 5 1 2 11 . 2 1 8 14 5 11 16 Robot Hacks Applied 88 | . . . . . . . 5 1 2 11 2 6 1 8 18 7 11 16 no_distress 2 | . . . . . . . . . . . . 2 . . . . . . ignore_parts 4 | . . . . . . . . . . . 2 2 . . . . . . map_route 1 | . . . . . . . . . . . . . . . . 1 . . overload_power 2 | . . . . . . . . . . . . . . . 1 1 . . amplify_resonance 7 | . . . . . . . . . 1 1 . . . . . . . 5 disable_weapons 1 | . . . . . . . . . . . . . . . . 1 . . go_dormant 1 | . . . . . . . . . . . . . . . 1 . . . streamctrl_high 1 | . . . . . . . . . . . . . . . . 1 . . formatsys_low 3 | . . . . . . . . . . . . . . . 3 . . . formatsys_high 66 | . . . . . . . 5 1 1 10 . 2 1 8 13 3 11 11 Relay Couplers Released 83 | . . . . . 12 . 16 . . 17 . . . 20 . . 18 . Machine Destruction 83 | . . . . . 12 . 16 . . 17 . . . 20 . . 18 . Attached 29 | . . . . . . . 4 . 1 7 . . 4 3 2 1 6 1 Robots Rewired 38 | . . . . . . . 8 . . 6 . 14 . 5 . . 5 . Allies Hacked 6 | . . . . . . . . . . . . . . . . . 1 5 Hacks Repelled . | . . . . . . . . . . . . . . . . . . . Allies | -11 -10 -9 -8 -7 -7 -6 -6 -6 -5 -5 -5 -5 -4 -4 -4 -3 -3 -3 -------- Run | Scr Mat Mat Mat Fac Gar Fac Gar Fac Fac Gar Fac Ext Fac Gar Fac Res Gar Res Total Allies 114 | . . . . . . . 13 1 1 16 . 22 1 13 16 4 16 11 Largest Group 23 | . . . . . . . 12 12 1 15 15 23 20 10 10 3 5 6 Highest-Rated Group 895 | . . . . . . . 300 300 29 479 479 895 784 369 346 176 273 385 Highest-Rated Ally 156 | . . . . . . . 38 38 29 49 49 156 156 49 58 64 115 115 Total Orders 103 | . . . . . . . 12 2 . 18 11 13 5 8 9 8 14 3 STAY 60 | . . . . . . . 7 1 . 10 6 8 3 5 5 4 9 2 FOLLOW 41 | . . . . . . . 5 1 . 8 5 5 2 3 2 4 5 1 AID 2 | . . . . . . . . . . . . . . . 2 . . . Ally Attacks 776 | . . . . . . . 11 55 4 62 43 171 65 55 121 18 30 141 Total Damage 21526 | . . . . . . . 155 2770 78 965 728 3610 1522 1463 3217 790 1135 5093 Kills 131 | . . . . . . . 4 19 . 8 4 23 9 11 18 2 4 29 Allies Corrupted 3 | . . . . . . . . . . . . . . 1 . 1 . 1 Allies Melted 1 | . . . . . . . . . 1 . . . . . . . . . Intel | -11 -10 -9 -8 -7 -7 -6 -6 -6 -5 -5 -5 -5 -4 -4 -4 -3 -3 -3 ------- Run | Scr Mat Mat Mat Fac Gar Fac Gar Fac Fac Gar Fac Ext Fac Gar Fac Res Gar Res Robot Analysis Total . | . . . . . . . . . . . . . . . . . . . Derelict Logs Recovered . | . . . . . . . . . . . . . . . . . . . Drone Launches . | . . . . . . . . . . . . . . . . . . . Drone Recoveries . | . . . . . . . . . . . . . . . . . . . Exploration | -11 -10 -9 -8 -7 -7 -6 -6 -6 -5 -5 -5 -5 -4 -4 -4 -3 -3 -3 ------------- Run | Scr Mat Mat Mat Fac Gar Fac Gar Fac Fac Gar Fac Ext Fac Gar Fac Res Gar Res Turns Passed 25541 | 58 321 870 655 804 1915 1523 1967 1005 602 2116 1809 2261 1460 1981 1787 1244 2073 1090 Spaces Moved 12955 | 39 315 413 341 398 785 932 1111 549 290 1106 814 1004 716 1002 865 786 1089 400 Core 12 | 12 . . . . . . . . . . . . . . . . . . Treads 1774 | . . . . . 243 . . . . . 170 48 . 58 4 . 940 311 Legs 9366 | . . 333 341 398 542 357 858 549 290 1106 623 956 716 944 861 416 . 76 Wheels 1803 | 27 315 80 . . . 575 253 . . . 21 . . . . 370 149 13 Hover . | . . . . . . . . . . . . . . . . . . . Flight . | . . . . . . . . . . . . . . . . . . . Fastest Speed 50 | 50 90 100 150 153 150 110 110 150 180 150 150 150 150 150 120 100 100 110 Average Speed 159 | 99 91 167 164 195 189 146 144 170 180 153 183 182 155 154 152 117 156 178 Slowest Speed 330 | 200 100 270 210 210 330 270 240 180 180 180 300 250 240 180 210 150 180 210 Overloaded Moves . | . . . . . . . . . . . . . . . . . . . Propulsion Burnouts . | . . . . . . . . . . . . . . . . . . . Robots Hopped 3 | . . . . . . . . . . . . . 3 . . . . . Cave-ins Triggered 2 | . . . 1 . . . . . . . 1 . . . . . . . Exploration Rate (%) 39 | 4 43 36 24 11 76 24 79 10 9 93 17 89 11 94 14 18 94 13 Regions Visited 18 Branch Regions 1 Pre-discovered Areas . | . . . . . . . . . . . . . . . . . . . Known Exits Taken 7 | . . . . 1 . 1 . 1 1 . . 1 1 . . 1 . . Unknown Exits Taken 6 | 1 1 1 1 . . . . . . . 1 . . . 1 . . . Scrap Searched . | . . . . . . . . . . . . . . . . . . . Spaces Dug 16 | . . . 5 . . . . . . . 4 . . . 2 5 . . Terrain Destroyed 309 | . 6 16 15 40 19 29 75 . . 6 7 1 17 22 42 8 6 . Melee 11 | . . . 5 . . . . . . . 4 . . . 2 . . . Projectile 86 | . . . . . . 7 . . . 6 3 1 17 19 19 8 6 . AOE 212 | . 6 16 10 40 19 22 75 . . . . . . 3 21 . . . Terrain Rammed . | . . . . . . . . . . . . . . . . . . . Walls Destroyed . | . . . . . . . . . . . . . . . . . . . Machines Disabled . | . . . . . . . . . . . . . . . . . . . Actions | -11 -10 -9 -8 -7 -7 -6 -6 -6 -5 -5 -5 -5 -4 -4 -4 -3 -3 -3 --------- Run | Scr Mat Mat Mat Fac Gar Fac Gar Fac Fac Gar Fac Ext Fac Gar Fac Res Gar Res Total 16241 | 51 334 521 407 420 1038 1036 1365 601 339 1430 1014 1394 919 1292 1153 973 1332 622 Wait 795 | . 6 38 7 7 40 26 59 24 8 91 88 125 83 41 74 26 33 19 Move 12934 | 38 314 412 339 398 784 932 1110 548 289 1105 813 1003 710 1001 864 786 1088 400 Hop 3 | . . . . . . . . . . . . . 3 . . . . . Pick Up 249 | 3 4 11 17 5 26 12 17 4 3 15 14 14 10 18 13 23 24 16 Fast Attach 151 | 7 . 6 2 4 7 11 8 1 4 4 12 10 8 11 13 24 4 15 Attach 128 | . . 1 5 . 20 8 9 1 1 9 6 8 9 10 13 2 10 16 Detach 40 | . . 3 . . 2 . 5 1 . 3 3 2 2 3 3 3 5 5 Swap 184 | . 2 6 6 . 8 1 22 4 8 17 5 16 7 9 31 10 15 17 Drop 185 | . 2 8 12 3 16 10 16 6 7 11 5 17 4 17 13 19 11 8 Fire 992 | 3 6 36 13 3 93 36 65 10 19 92 64 47 78 80 100 61 83 103 Melee 72 | . . . 5 . 1 . 23 2 . 1 4 1 . 1 6 18 . 10 Ram . | . . . . . . . . . . . . . . . . . . . Kick . | . . . . . . . . . . . . . . . . . . . Crush 1 | . . . . . . . . . . . . . . . . . 1 . Escape Stasis 183 | . . . 1 . 41 . 28 . . 35 . 25 5 35 13 . . . Rewire 324 | . . . . . . . 3 . . 47 . 126 . 66 10 1 58 13 Trap . | . . . . . . . . . . . . . . . . . . . Miscellaneous . | . . . . . . . . . . . . . . . . . . . Route ------- -11/Scrapyard -10/Materials -9/Materials -8/Materials -7/Factory (discovered 2 exits: *Fac / Gar) -7/Garrison (discovered 3 exits: *Fac x3) -6/Factory (discovered 2 exits: *Fac / Gar) -6/Garrison (discovered 2 exits: *Fac x2) -6/Factory -5/Factory -5/Garrison (discovered 3 exits: *Fac x3) -5/Factory -5/Extension (discovered 3 exits: *Fac x2 / *Cet) -4/Factory -4/Garrison (discovered 3 exits: *Fac x3) -4/Factory -3/Research (discovered 3 exits: [*Res] / [*Tes] / Gar) -3/Garrison (discovered 3 exits: *Res x3) -3/Research History --------- Turn | Location | Event 33 | -11/Scrapyard | Discovered new exit (range 15) 59 | -11/Scrapyard | Entered Materials 296 | -10/Materials | Discovered new exit (range 8) 318 | -10/Materials | Build established: Mutant 380 | -10/Materials | Entered another Materials area 380 | -9/Materials | Evolved 2 slots: Utility x2 973 | -9/Materials | Discovered new exit (range 8) 1124 | -9/Materials | Build established: Scavenger-Mutant 1250 | -9/Materials | Entered another Materials area 1250 | -8/Materials | Evolved 2 slots: Propulsion x1, Utility x1 1734 | -8/Materials | Discovered new exit (range 17) 1765 | -8/Materials | Crushed by falling debris 1766 | -8/Materials | System corruption reached 10% 1796 | -8/Materials | Lost 3 parts (1n1u1w) 1905 | -8/Materials | Entered Factory 1905 | -7/Factory | Evolved 2 slots: Utility x2 2166 | -7/Factory | Build established: Hauler-Mutant 2645 | -7/Factory | Discovered new exit (range 16) 2709 | -7/Factory | Identified exit to Garrison 2709 | -7/Factory | Entered Garrison 2717 | -7/Garrison | Installed Relay Interface Framework 2751 | -7/Garrison | Triggered checkpoint 2803 | -7/Garrison | Lost 3 parts (1p1u1w) 2824 | -7/Garrison | Garrison Relay disabled 2994 | -7/Garrison | Triggered checkpoint 3007 | -7/Garrison | Triggered checkpoint 3331 | -7/Garrison | Discovered new exit (range 10) 3382 | -7/Garrison | Triggered checkpoint 3428 | -7/Garrison | Garrison Relay disabled 3560 | -7/Garrison | Triggered checkpoint 3692 | -7/Garrison | Lost 6 parts (1p3n1u1w) 3800 | -7/Garrison | Triggered checkpoint 3923 | -7/Garrison | Lost 4 parts (1n3w) 3975 | -7/Garrison | Build established: Scavenger-Mutant 4005 | -7/Garrison | Discovered new exit (range 9) 4193 | -7/Garrison | Discovered new exit (range 15) 4268 | -7/Garrison | Triggered checkpoint 4311 | -7/Garrison | Garrison Relay disabled 4377 | -7/Garrison | Core integrity fell below 50% 4624 | -7/Garrison | Entered Factory 4624 | -6/Factory | Evolved 2 slots: Utility x2 5265 | -6/Factory | Garrison activated, responded to threat 5428 | -6/Factory | Lost 7 parts (1p2n2u2w) 6058 | -6/Factory | Discovered new exit (range 5) 6062 | -6/Factory | Identified exit to Factory 6147 | -6/Factory | Identified exit to Garrison 6147 | -6/Factory | Entered Garrison 6153 | -6/Garrison | Expanded RIF knowledge: Structural Interface 6175 | -6/Garrison | Build established: Bothacker-Mutant 6214 | -6/Garrison | Triggered checkpoint 6252 | -6/Garrison | Garrison Relay disabled 6295 | -6/Garrison | Spotted B-75 Beast 6433 | -6/Garrison | Destroyed B-75 Beast 6708 | -6/Garrison | Triggered checkpoint 6734 | -6/Garrison | Triggered checkpoint 6886 | -6/Garrison | Discovered new exit (range 8) 7128 | -6/Garrison | Triggered checkpoint 7128 | -6/Garrison | Garrison Relay disabled 7144 | -6/Garrison | Core integrity fell below 50% 7224 | -6/Garrison | Triggered checkpoint 7267 | -6/Garrison | Garrison Relay disabled 7525 | -6/Garrison | Discovered new exit (range 15) 7545 | -6/Garrison | Identified exit to Factory 7652 | -6/Garrison | Triggered checkpoint 7675 | -6/Garrison | Garrison Relay disabled 8114 | -6/Garrison | Entered Factory 8114 | -6/Factory | Accompanied by 12 allies 8401 | -6/Factory | Found Hvy. Reactive Plating 8509 | -6/Factory | Discovered exit to Factory (range 10) 8920 | -6/Factory | Garrison activated, responded to threat 9119 | -6/Factory | Entered another Factory area 9119 | -5/Factory | Accompanied by 1 ally 9119 | -5/Factory | Evolved 2 slots: Utility x2 9704 | -5/Factory | Identified exit to Garrison 9721 | -5/Factory | Entered Garrison 9721 | -5/Garrison | Accompanied by 1 ally 9924 | -5/Garrison | Triggered checkpoint 9970 | -5/Garrison | Garrison Relay disabled 9986 | -5/Garrison | Triggered checkpoint 10242 | -5/Garrison | Triggered checkpoint 10413 | -5/Garrison | Discovered new exit (range 11) 10448 | -5/Garrison | Triggered checkpoint 10567 | -5/Garrison | Garrison Relay disabled 10713 | -5/Garrison | Triggered checkpoint 10727 | -5/Garrison | Triggered checkpoint 10880 | -5/Garrison | Discovered new exit (range 15) 10912 | -5/Garrison | Expanded RIF knowledge: Hotswap 10972 | -5/Garrison | Garrison Relay disabled 11278 | -5/Garrison | Discovered new exit (range 6) 11294 | -5/Garrison | Triggered checkpoint 11343 | -5/Garrison | Garrison Relay disabled 11427 | -5/Garrison | Found Antimissile System 11541 | -5/Garrison | Triggered checkpoint 11576 | -5/Garrison | Triggered checkpoint 11837 | -5/Garrison | Entered Factory 11837 | -5/Factory | Accompanied by 15 allies 12200 | -5/Factory | Lost 5 parts (2p2u1w) 12260 | -5/Factory | Crushed by falling debris 12260 | -5/Factory | System corruption reached 10% 13176 | -5/Factory | Discovered new exit (range 5) 13481 | -5/Factory | Spotted B-75 Beast 13646 | -5/Factory | Entered Extension 13646 | -5/Extension | Accompanied by 12 allies 13984 | -5/Extension | Core integrity fell below 50% 14110 | -5/Extension | Lost 3 parts (1p1n1w) 14316 | -5/Extension | Lost 3 parts (1p2u) 14485 | -5/Extension | Rescued a captive Derelict 14498 | -5/Extension | Build established: Commander-Mutant 14711 | -5/Extension | Rescued a captive Derelict 15369 | -5/Extension | Spotted B-75 Beast 15382 | -5/Extension | Allies destroyed B-75 Beast 15388 | -5/Extension | Spotted B-75 Beast 15397 | -5/Extension | Allies destroyed B-75 Beast 15420 | -5/Extension | Discovered new exit (range 3) 15504 | -5/Extension | Rescued a captive Derelict 15584 | -5/Extension | Rescued a captive Derelict 15590 | -5/Extension | Rescued a captive Derelict 15619 | -5/Extension | Rescued A7 15819 | -5/Extension | Discovered new exit (range 10) 15820 | -5/Extension | Discovered new exit (range 6) 15861 | -5/Extension | Identified exit to Cetus 15864 | -5/Extension | Identified exit to Factory 15907 | -5/Extension | Entered Factory 15907 | -4/Factory | Accompanied by 20 allies (A7) 15907 | -4/Factory | Evolved 2 slots: Utility x2 16746 | -4/Factory | System corruption reached 10% 16789 | -4/Factory | Lost 7 parts (2n4u1w) 17061 | -4/Factory | Lost 3 parts (1u2w) 17355 | -4/Factory | Identified exit to Garrison 17367 | -4/Factory | Entered Garrison 17367 | -4/Garrison | Accompanied by 10 allies 17428 | -4/Garrison | Triggered checkpoint 17480 | -4/Garrison | Spotted B-86 Titan 17518 | -4/Garrison | Garrison Relay disabled 17674 | -4/Garrison | Build established: Bothacker-Mutant 17686 | -4/Garrison | Triggered checkpoint 17705 | -4/Garrison | Triggered checkpoint 17762 | -4/Garrison | Lost 6 parts (1p2n2u1w) 17929 | -4/Garrison | Lost 3 parts (1u2w) 17929 | -4/Garrison | Destroyed B-86 Titan 18258 | -4/Garrison | Discovered new exit (range 8) 18277 | -4/Garrison | Expanded RIF knowledge: Coupler Efficiency 18348 | -4/Garrison | Triggered checkpoint 18370 | -4/Garrison | Garrison Relay disabled 18504 | -4/Garrison | Discovered new exit (range 14) 18582 | -4/Garrison | Build established: Botlord-Mutant 18619 | -4/Garrison | Garrison Relay disabled 18636 | -4/Garrison | Triggered checkpoint 18770 | -4/Garrison | Discovered new exit (range 10) 18856 | -4/Garrison | Triggered checkpoint 18862 | -4/Garrison | Triggered checkpoint 18966 | -4/Garrison | Garrison Relay disabled 19054 | -4/Garrison | Garrison Relay disabled 19348 | -4/Garrison | Entered Factory 19348 | -4/Factory | Accompanied by 9 allies 19848 | -4/Factory | First assault squad dispatched 20489 | -4/Factory | Core integrity fell below 50% 20534 | -4/Factory | Lost 8 parts (1p2n3u2w) 20951 | -4/Factory | Lost 6 parts (2n2u2w) 21125 | -4/Factory | Discovered new exit (range 6) 21135 | -4/Factory | Entered Research 21135 | -3/Research | Accompanied by 2 allies 21135 | -3/Research | Evolved 2 slots: Utility x2 21437 | -3/Research | Lost 3 parts (2n1u) 21473 | -3/Research | Discovered new exit (range 4) 21540 | -3/Research | Discovered new exit (range 31) 21718 | -3/Research | Build established: Bothacker-Mutant 21879 | -3/Research | Lost 8 parts (1p5u2w) 22121 | -3/Research | Lost 4 parts (3u1w) 22379 | -3/Research | Identified exit to Garrison 22379 | -3/Research | Entered Garrison 22419 | -3/Garrison | Garrison Relay disabled 22426 | -3/Garrison | Triggered checkpoint 22527 | -3/Garrison | Spotted B-86 Titan 22674 | -3/Garrison | Triggered checkpoint 22675 | -3/Garrison | Garrison Relay disabled 22836 | -3/Garrison | Triggered checkpoint 22926 | -3/Garrison | Triggered checkpoint 22991 | -3/Garrison | Build established: Botlord-Mutant 23036 | -3/Garrison | System corruption reached 10% 23108 | -3/Garrison | Assimilated Titan 8a with formatsys_high 23254 | -3/Garrison | Triggered checkpoint 23296 | -3/Garrison | Core integrity fell below 50% 23434 | -3/Garrison | Discovered new exit (range 13) 23513 | -3/Garrison | Garrison Relay disabled 23736 | -3/Garrison | Discovered new exit (range 7) 23836 | -3/Garrison | Triggered checkpoint 23897 | -3/Garrison | Garrison Relay disabled 24084 | -3/Garrison | Triggered checkpoint 24122 | -3/Garrison | Triggered checkpoint 24141 | -3/Garrison | Garrison Relay disabled 24193 | -3/Garrison | Discovered new exit (range 13) 24222 | -3/Garrison | Expanded RIF knowledge: Watcher Feeds 24452 | -3/Garrison | Entered Research 24452 | -3/Research | Accompanied by 4 allies 24831 | -3/Research | Lost 8 parts (1p2n3u2w) 25182 | -3/Research | Core integrity fell below 20% 25182 | -3/Research | Garrison activated, responded to threat 25212 | -3/Research | Lost 4 parts (1p2u1w) 25226 | -3/Research | Spotted B-86 Titan 25239 | -3/Research | Destroyed B-86 Titan 25268 | -3/Research | Found Unknown Protection 25268 | -3/Research | Identified Hvy. Reflective Plating 25283 | -3/Research | Garrison activated, responded to threat 25331 | -3/Research | Lost 3 parts (1p1u1w) 25359 | -3/Research | P-80 Master assimilated allied Plague 8a 25440 | -3/Research | Lost 6 parts (3n1u2w) 25514 | -3/Research | P-80 Master assimilated allied Warden 8h 25521 | -3/Research | System corruption reached 30% 25542 | -3/Research | Destroyed by G-67 Veteran with Plasma Rifle Last Messages --------------- 25525_ Adv. Cooling System destroyed. 25526_ System corrupted: Matter fused (-5). 25527_ Penetrated by Slug. 25527_ System corrupted: Force Lance targeting data glitched. 25527_ K-01 Serf collects debris. 25530_ Destroyed Adv. Heat Sink. 25530_ P-80 Master resets Warden 8h, system corruption cleaned. 25530_ K-01 Serf collects debris. 25532_ Biometal Leg destroyed. 25532_ P-80 Master destroyed. 25533_ Adv. Heat Sink destroyed. 25533_ K-01 Serf collects debris. 25534_ System corrupted: Force Lance targeting data glitched. 25535_ A-15 Conveyor destroyed. 25536_ K-01 Serf collects debris. 25536_ Adv. Heat Sink destroyed. 25537_ Warden 8h heat damages Quantum Rifle. 25537_ Warden 8h destroyed. 25539_ K-01 Serf collects debris. 25540_ Flexi-carbon Leg destroyed. Map ----- +----------------------------------------------------+ | ????????????????????# #????????????# #????????? | | ????????????????????# #????????????# #????????? | | ????????????????????# #????????????# #????????? | | ????????????????????#|#????????????# #????????? | | ????????????????????# #????????????# #????????? | | ?? ################# ############## #????????? | | ?? != * ^ #????????? | | ? = %* ^^ #????????? | | ? %%%*% ^ #????????? | | ? * =%== !!! +????????? | | ?????########### ############ %!!! #????????? | | ???????????????# #??????????# ! !% #????????? | | ???????????????# #??????????# ########## | | ???????????????# #??????????# % % | | ???????????????# #??????????# ! | | ???????????????#+############ | | ???????????????# # ! """ | | ???????????????# [# ### """ | | ???????????????# """ # #?# !" "" """ | | ???????????????# """ # #?# %"R"" =" | | ???????????????# """=*# ### !%""" % | | ???????????????#""" """![+ # =%![ %% =% | | ???????????????#""F """g%# # %%! | | ???????????????#"" "=k*|# ### % | | ???????????????#""" pp[[!# ??####+########## | | ???????????????#""" [@%[# ????? ????????## | | ???????????????# !![[[#?? ???? ??????????# | | ???????????????# !=#?????# [! ??????????# | | ???????????????####### ######?????# ! ???????????# | | ?????????????????????###??????????# ????????????# | | ?????????????????????????????????????????????????# | | ?????????????????????????????????????????????????# | | ?????????????????????????????????????????????????# | | ?????????????????????????????????????????????????# | | ?????????????????????????????????????????????????? | | ?????????????????????????????????????????????????? | | ?????????????????????????????????????????????????? | | ?????????????????????????????????????????????????? | | ?????????????????????????????????????????????????? | | ?????????????????????????????????????????????????? | | ?????????????????????????????????????????????????? | | ?????????????????????????????????????????????????? | | ?????????????????????????????????????????????????? | | ?????????????????????????????????????????????????? | | ?????????????????????????????????????????????????? | | ?????????????????????????????????????????????????? | | ?????????????????????????????????????????????????? | | ?????????????????????????????????????????????????? | | ?????????????????????????????????????????????????? | | ?????????????????????????????????????????????????? | +----------------------------------------------------+ Best States ------------- Heat Dissipation 115 Coolant Potential 80 Energy Generation 29 Energy Capacity 1140 Matter Stores 535 Matter Capacity 550 Sight Range 16 Robot Scan Range 16 Terrain Scan Range 20 Terrain Scan Density 85 Power Amplification 20 Additional Mass Support 16 Armor Coverage 825 Resistance: KI 40 Resistance: TH 25 Resistance: EM 15 Core Shielding 30 Weapon Shielding 66 Weapon Cycling 15 Evasion (%) 42 Targeting Accuracy 14 Melee Accuracy 8 Target Analysis 8 Core Analysis 6 Recoil Reduction 3 Defensive Hacking 12 Relay Coupler Types 162 Relay Coupler Value 7 Item Schematics ----------------- None Robot Schematics ------------------ None Fabricated ------------ Nothing Alien Tech Used ----------------- None Achievements -------------- Can't Touch This Just Shoot The Terminal Pwned Watch This! We Are Legion Challenges ------------ None Game ------ Seed TiamatHelicalMantle Manual? 0 Play Time 04:27:54 Cumulative 134.5 hours Start 2021.03.02 @ 20:21:42 End 2021.03.05 @ 18:09:52 Sessions 13 Manual Loads 0 Difficulty Rogue Special Mode None Game No. 125 Rogue 125 Adventurer 0 Explorer 0 Win Type - Total 4 Types 3/0/0/1/0/0/0/0/0 Lore% 62 Gallery% 66 Achievement% 53 Wizard Run 0 Options --------- ASCII 0 Keyboard 1 Movement Vi Keybinds 0 Fullscreen 1 Font 18/X11 Map View 76x50 Tactical HUD 1 Map Filters NONE Filters NONE Steam 1 RUN: 8ecb1219-fe48-4733-a0a9-72b7eb1726e8